Workbook

Sheet Sheet1
A1: ="'"&F1 -> '[BudgetTest 5.xlsm]Projection'!$A$14:$CC$1000 | B1: Match paramater 1 - table range | E1: =A4 -> Projection_6315681.xlsm | F1: [BudgetTest 5.xlsm]Projection'!$A$14:$CC$1000 | L1: Income Statement
A2: ="'"&F2 -> '[BudgetTest 5.xlsm]Projection'!$D$14:$D$1000 | B2: match paramater 2 - labels | C2: BudgetTest 5.xlsm | D2: Budget File Name | F2: [BudgetTest 5.xlsm]Projection'!$D$14:$D$1000
A3: '[BudgetTest 5.xlsm]Projection'!$A$11:$CC$11 | B3: match paramater 3 - dates | F3: [BudgetTest 5.xlsm]Projection'!$A$11:$CC$11
A4: Projection_6315681.xlsm | B4: File Name | E4: =CONCATENATE("'[",A4,"]Projection'!$A$11:$CC$11") -> '[Projection_6315681.xlsm]Projection'!$A$11:$CC$11
A5: =MATCH("SubAccounts",INDIRECT(A9),0) -> 26 | C5: 2017-12-31 | D5: =C5 -> 2017-12-31 | E5: $ Variance | F5: % Variance | G5: 1stname match | H5: 2ndaccount match | J5: decided value | K5: =INDEX(INDIRECT(A1),MATCH(B15,AZ:AZ,0)) -> 
A6: ="Projection" & "'" &"!" &ADDRESS(14,A5,1,1,) -> Projection'!$Z$14 | C6: 12 months | D6: =C6 -> 12 months | I6: SubAccounts
A7: =CONCATENATE("'[",A4,"]",A6,":",ADDRESS(1000,A5,1,1,)) -> '[Projection_6315681.xlsm]Projection'!$Z$14:$Z$1000 | B7: Income Statement | C7: 12 | D7: =C7 -> 12 | E7: =IFERROR(C7-D7,"") -> 0 | F7: =IFERROR((C7-D7)/ABS(D7),"") -> 0 | G7: =IFERROR(IF(B7="","",INDEX(INDIRECT($A$1),MATCH(B7,INDIRECT($A$2),0),MATCH($D$5,INDIRECT($A$3),0))),"Not In Budget") -> Not In Budget | H7: =INDEX(INDIRECT($A$1),MATCH(I7,INDIRECT($A$7),0),MATCH($D$5,INDIRECT($A$3),0)) ->  | J7: =IFERROR(IF(G7="Not In Budget",G7,IF(ISERROR(H7),G7,IF(ISBLANK(I7),G7,IF(G7<>H7,IF(H7=0,G7,H7),G7)))),"Not in Budget") -> Not In Budget | K7: =IFERROR(IF(B8="","",INDEX(INDIRECT($A$1),MATCH(B7,INDIRECT($A$2),0),52)),"Not In Budget") -> Not In Budget
A8: =ADDRESS(1000,A5,,,) -> $Z$1000 | B8: Sales (Income) | C8: 1486000 | D8: =J8 -> 1657476 | E8: =IFERROR(C8-D8,"") -> -171476 | F8: =IFERROR((C8-D8)/ABS(D8),"") -> -0.1034560983 | G8: =IFERROR(IF(B8="","",INDEX(INDIRECT($A$1),MATCH(B8,INDIRECT($A$2),0),MATCH($D$5,INDIRECT($A$3),0))),"Not In Budget") -> 1657476 | J8: =IFERROR(IF(G8="Not In Budget",G8,IF(ISERROR(H8),G8,IF(ISBLANK(I8),G8,IF(G8<>H8,IF(H8=0,G8,H8),G8)))),"Not in Budget") -> 1657476 | K8: 0
A9: =CONCATENATE("'[",A4,"]Projection'!$A$12:$CC$12") -> '[Projection_6315681.xlsm]Projection'!$A$12:$CC$12 | B9: COGSDepreciation | C9: 0 | D9: =J9 -> 0 | E9: 0 | G9: =IFERROR(IF(B9="","",INDEX(INDIRECT($A$1),MATCH(B9,INDIRECT($A$2),0),MATCH($D$5,INDIRECT($A$3),0))),"Not In Budget") -> 0 | J9: =IFERROR(IF(G9="Not In Budget",G9,IF(ISERROR(H9),G9,IF(ISBLANK(I9),G9,IF(G9<>H9,IF(H9=0,G9,H9),G9)))),"Not in Budget") -> 0 | K9: 0 | L9: =ADDRESS(1,1,4,,"Projections") -> Projections!A1
A10: First historical | B10: Cost of Sales (COGS) | C10: 921794 | D10: 1123106 | E10: -201312 | F10: -0.1792457702 | G10: 1123106 | H10: =INDEX(INDIRECT($A$1),MATCH(I10,INDIRECT($A$7),0),MATCH($D$5,INDIRECT($A$3),0)) ->  | J10: =IFERROR(IF(G10="Not In Budget",G10,IF(ISERROR(H10),G10,IF(ISBLANK(I10),G10,IF(G10<>H10,IF(H10=0,G10,H10),G10)))),"Not in Budget") -> 1123106 | K10: =IFERROR(IF(B11="","",INDEX(INDIRECT($A$1),MATCH(B10,INDIRECT($A$2),0),52)),"Not In Budget") -> 0 | L10: =ADDRESS(1,A5,,,"Sheet2") -> Sheet2!$Z$1
A11: =MATCH(C5,INDIRECT(E4),0) -> 9 | B11: Depreciation (COGS-related) | C11: 0 | D11: 0 | E11: 0 | G11: 0 | H11: =INDEX(INDIRECT($A$1),MATCH(I11,INDIRECT($A$7),0),MATCH($D$5,INDIRECT($A$3),0)) -> 0 | I11: CostOfSales_4 | J11: 0 | K11: 0
A12: second historical | B12: Direct Materials | C12: 0 | D12: 0 | E12: 0 | G12: 0 | H12: 0 | I12: CostOfSales_5 | J12: 0 | K12: 0
A13: =A11-1 -> 8 | B13: Direct Labor | C13: 0 | D13: 0 | E13: 0 | G13: 0 | H13: 0 | I13: CostOfSales_6 | J13: 0 | K13: 0
A14: =CONCATENATE("'[",A4,"]Projection'!$D$1:$D$1000") -> '[Projection_6315681.xlsm]Projection'!$D$1:$D$1000 | B14: Subcontractor Expense | C14: 0 | D14: 0 | E14: 0 | G14: 0 | H14: 0 | I14: CostOfSales_7 | J14: 0 | K14: 0
A15: =CONCATENATE("'[",A4,"]Projection'!$A$1:$CC$1000") -> '[Projection_6315681.xlsm]Projection'!$A$1:$CC$1000 | B15: Cost of Sales | C15: 0 | D15: 1123106 | E15: -1123106 | F15: -1 | G15: 1123106 | H15: 1123106 | I15: CostOfSales_8 | J15: 1123106 | K15: 0
A16: =INDEX(INDIRECT(A15),14,A11) -> 1486000 | B16: Other | C16: 921794 | D16: Not In Budget | G16: Not In Budget | H16: 0.3223998417 | I16: CostOfSales_9 | J16: Not In Budget | K16: Not In Budget
A17: Actual Sales Growth Rate Below | B17: Gross Profit Margin | C17: 0.3796810229 | D17: 0.3223998417 | E17: 0.05728118119 | F17: 0.1776712448 | G17: 0.3223998417 | J17: 0.3223998417
A18: =MATCH("Net Income",INDIRECT(A14),0) -> 55 | K18: Not In Budget
A19: =INDEX(INDIRECT(A15),14,A11-1) -> 1236000 | B19: Gross Profit | C19: 564206 | D19: 534370 | E19: 29836 | F19: 0.05583397272 | G19: 534370 | J19: 534370
A20: =IFERROR((A16-A19)/ABS(A19),"") -> 0.2022653722 | K20: Not In Budget
A21: actucal growth rate above | B21: Depreciation | C21: 7416 | D21: 7416 | E21: 0 | F21: 0 | G21: 7416 | J21: 7416 | K21: 0
B22: Amortization | C22: 0 | D22: 0 | E22: 0 | G22: 0 | J22: 0 | K22: 0
A23: budget file reference | B23: Overhead or S,G,& A Expenses | C23: 210288 | D23: 281681 | E23: -71393 | F23: -0.2534533746 | G23: 281681 | J23: 281681 | K23: 0
A24: =CONCATENATE("'[",C2,"]Projection'!$A$11:$CC$11") -> '[BudgetTest 5.xlsm]Projection'!$A$11:$CC$11 | B24: G & A Payroll Expense | C24: 80880 | D24: 9966 | E24: 70914 | F24: 7.115593016 | G24: 108339 | H24: 9966 | I24: Overhead_17 | J24: 9966 | K24: 0
A25: budget file lable reference | B25: Rent | C25: 7440 | D25: 5626 | E25: 1814 | F25: 0.3224315677 | G25: 9966 | H25: 5626 | I25: Overhead_18 | J25: 5626 | K25: 0
A26: =CONCATENATE("'[",C2,"]Projection'!$B$1:$B$1000") -> '[BudgetTest 5.xlsm]Projection'!$B$1:$B$1000 | B26: Advertising | C26: 4200 | D26: 157750 | E26: -153550 | F26: -0.9733755943 | G26: 5626 | H26: 157750 | I26: Overhead_19 | J26: 157750 | K26: 0
A27: Budget File Range reference | B27: Miscellaneous | C27: 117768 | D27: 240 | E27: 117528 | F27: 489.7 | G27: 157750 | H27: 240 | I27: Overhead_20 | J27: 240 | K27: 0
A28: =CONCATENATE("'[",C2,"]Projection'!$A$1:$CC$1000") -> '[BudgetTest 5.xlsm]Projection'!$A$1:$CC$1000 | B28: Other Operating Income | C28: 240 | D28: 240 | E28: 0 | F28: 0 | G28: 240 | J28: 240 | K28: 0
A29: =MATCH(C5,INDIRECT(A24),0) -> 11 | B29: Other Operating Expenses | C29: 50688 | D29: 50688 | E29: 0 | F29: 0 | G29: 50688 | J29: 50688
A30: =INDEX(INDIRECT(A28),13,A29) -> 12
A31: =INDEX(INDIRECT(A28),13,A29+A36) ->  | B31: Total Operating Expenses | C31: 268392 | D31: 339785 | E31: -71393 | F31: -0.2101122769 | G31: 339785 | J31: 339785
A32: =IFERROR((A30-A31)/ABS(A31),"") ->  | B32: Operating Profit | C32: 296054 | D32: 194825 | E32: 101229 | F32: 0.5195893751 | G32: 194825 | J32: 194825
A33: Budget Growth Rate above
A34: BusinessesCurrentPeriod | B34: Interest Expense | C34: 14640 | D34: 5792.11 | E34: 8847.89 | F34: 1.527576306 | G34: 5792.11 | J34: 5792.11
A35: =MATCH(A34,INDIRECT(A26),0) ->  | B35: Interest Expense | C35: -- | D35: 2040 | G35: 5792.11 | H35: 2040 | I35: Interest_28_Projection | J35: 2040
A36: =INDEX(INDIRECT(A28),A35,A29) ->  | B36: Other Income | C36: 2040 | D36: 2040 | E36: 0 | F36: 0 | G36: 2040 | J36: 2040
B37: Other Expenses | C37: 960 | D37: 960 | E37: 0 | F37: 0 | G37: 960 | J37: 960
A38: Actual Net Income Current | H38: 0 | I38: OtherExpenses_30
A39: =INDEX(INDIRECT(A15),A18,A11) -> 271446
A40: Actual Net Income Prior | B40: EBITDA | C40: 304550 | D40: 203321 | E40: 101229 | F40: 0.4978777401 | G40: 203321 | J40: 203321
A41: =INDEX(INDIRECT(A15),A18,A13) -> 21446 | B41: Net Profit Before Taxes | C41: 282494 | D41: 190112.89 | E41: 92381.11 | F41: 0.4859276507 | G41: 190112.89 | J41: 190112.89
A42: =IFERROR((A39-A41)/ABS(A41),"") -> 11.65718549 | B42: Adjusted Owner's Compensation | C42: 0 | D42: 0 | E42: 0 | G42: 0 | J42: 0
B43: Adjusted Net Profit Before Taxes | C43: 282494 | D43: 190112.89 | E43: 92381.11 | F43: 0.4859276507 | G43: 190112.89 | J43: 190112.89
A44: Budgeted Net Income growth
A45: =IFERROR(((INDEX(INDIRECT(A28),MATCH("Net Income",INDIRECT(A26),0),A29))-(INDEX(INDIRECT(A28),MATCH("Net Income",INDIRECT(A26),0),A29+A36)))/ABS(INDEX(INDIRECT(A28),MATCH("Net Income",INDIRECT(A26),0),A29+A36)),"") ->  | B45: Taxes Paid | C45: 11048 | D45: 64639 | E45: -53591 | F45: -0.8290815143 | G45: 64639 | J45: 64639
B46: Extraordinary Gain | C46: 0 | D46: 0 | E46: 0 | G46: 0 | J46: 0
A47: Budgeted Sales growth | B47: Extraordinary Loss | C47: 0 | D47: 0 | E47: 0 | G47: 0 | J47: 0
A48: =IFERROR(((INDEX(INDIRECT(A28),MATCH("Sales (Income)",INDIRECT(A26),0),A29))-(INDEX(INDIRECT(A28),MATCH("Sales (Income)",INDIRECT(A26),0),A29+A36)))/ABS(INDEX(INDIRECT(A28),MATCH("Sales (Income)",INDIRECT(A26),0),A29+A36)),"") -> 
B49: Net Income | C49: 271446 | D49: 125473.89 | E49: 145972.11 | F49: 1.163366418 | G49: 125473.89 | J49: 125473.89
B54: Balance Sheet Assumptions | D54: 0 | E54: 0 | G54: 0 | J54: 0
B55: Accounts Receivable Days | C55: 12.4765646 | D55: 10.9 | E55: 1.576564603 | F55: 0.1446389544 | G55: 10.9 | J55: 10.9
B56: Accounts Payable Days | C56: 41.72304224 | D56: 22.2 | E56: 19.52304224 | F56: 0.8794163172 | G56: 22.2 | J56: 22.2
B57: Inventory Days | C57: 45.59005591 | D57: 38.2 | E57: 7.390055913 | F57: 0.1934569611 | G57: 38.2 | J57: 38.2
B59: Balance Sheet | C59: 12 months | D59: 12 months | G59: 12 months | J59: 12 months
B60: Cash (Bank Funds) | C60: 56666 | D60: 122171 | E60: -65505 | F60: -0.5361747059 | G60: 122171 | J60: 122171
B61: Accounts Receivable | C61: 50795 | D61: 49497 | E61: 1298 | F61: 0.02622381154 | G61: 49497 | J61: 49497
B62: Inventory | C62: 115136 | D62: 117542 | E62: -2406 | F62: -0.02046927907 | G62: 117542 | J62: 117542
B63: Other Current Assets | C63: 86048 | D63: 86048 | E63: 0 | F63: 0 | G63: 86048 | J63: 86048
B64: Costs and Earnings in Excess of Billings | C64: 0 | D64: 86048 | E64: -86048 | F64: -1 | G64: 0 | H64: 86048 | I64: OtherCurrentAssets_5 | J64: 86048
B65: Other Current Assets | C65: 86048 | D65: 86048 | E65: 0 | F65: 0 | G65: 86048 | H65: 0 | I65: OtherCurrentAssets_6 | J65: 86048
B67: Total Current Assets | C67: 308645 | D67: 375258 | E67: -66613 | F67: -0.177512538 | G67: 375258 | J67: 375258
B69: Gross Fixed Assets | C69: 70343 | D69: 70343 | E69: 0 | F69: 0 | G69: 70343 | J69: 70343
B70: Accumulated Depreciation | C70: 44206 | D70: 51622 | E70: -7416 | F70: -0.14365968 | G70: 51622 | J70: 51622
B72: Net Fixed Assets | C72: 26137 | D72: 18721 | E72: =IFERROR(C72-D72,"") -> 7416 | F72: =IFERROR((C72-D72)/ABS(D72),"") -> 0.3961326852 | G72: 18721 | J72: 18721
D73: =J73 ->  | G73: =IFERROR(IF(B73="","",INDEX(INDIRECT($A$1),MATCH(B73,INDIRECT($A$2),0),MATCH($D$5,INDIRECT($A$3),0))),"Not In Budget") -> 
B74: Gross Intangible Assets | C74: 0 | D74: 0 | E74: 0 | G74: 0 | J74: =IFERROR(IF(G74="Not In Budget",G74,IF(ISERROR(H74),G74,IF(ISBLANK(I74),G74,IF(G74<>H74,IF(H74=0,G74,H74),G74)))),"Not in Budget") -> 0
B75: Accumulated Amortization | C75: 0 | D75: 0 | E75: 0 | G75: 0 | H75: =INDEX(INDIRECT($A$1),MATCH(I75,INDIRECT($A$7),0),MATCH($D$5,INDIRECT($A$3),0)) ->  | J75: 0
B77: Net Intangible Assets | C77: 0 | D77: 0 | E77: 0 | G77: 0 | J77: 0
B79: Other Assets | C79: 15113 | D79: 15113 | E79: 0 | F79: 0 | G79: 15113 | J79: 15113
B81: Total Assets | C81: 349895 | D81: 409092 | E81: -59197 | F81: -0.1447033919 | G81: 409092 | J81: 409092
B83: Accounts Payable | C83: 105370 | D83: 68310 | E83: 37060 | F83: 0.5425267164 | G83: 68310 | J83: 68310
B84: Short Term Debt | C84: 0 | D84: 0 | E84: 0 | G84: 0 | J84: 0
B85: Loan Information Debt Service | D85: 25011 | E85: -25011 | F85: -1 | G85: 25011 | J85: 25011
B86: Current Portion of Long Term Debt | C86: 10371 | D86: 20961.44 | E86: -10590.44 | F86: -0.5052343732 | G86: 20961.44 | J86: 20961.44
B87: Current Portion of Long Term Debt | C87: -- | D87: 10371 | G87: 20961.44 | H87: 10371 | I87: CurrentLongTermDebt_28_Projection | J87: 10371
B88: Prior Current Portion of Long Term Debt | D88: 10371 | E88: -10371 | F88: -1 | G88: 10371 | J88: 10371
B89: Other Current Liabilities | C89: 99360 | D89: 99360 | E89: 0 | F89: 0 | G89: 99360 | J89: 99360
B90: Billings in Excess of Costs | C90: 0 | D90: 99360 | E90: -99360 | F90: -1 | G90: 0 | H90: 99360 | I90: OtherCurrentLiabilities_30 | J90: 99360
B91: Other Current Liabilities | C91: 0 | D91: 99360 | E91: -99360 | F91: -1 | G91: 99360 | H91: 0 | I91: OtherCurrentLiabilities_31 | J91: 99360
B92: Other | C92: 99360 | D92: Not In Budget | G92: Not In Budget | H92: 188631.44 | I92: OtherCurrentLiabilities_32 | J92: Not In Budget
B94: Total Current Liabilities | C94: 215101 | D94: 188631.44 | E94: 26469.56 | F94: 0.1403242217 | G94: 188631.44 | J94: 188631.44
B96: Notes Payable / Senior Debt | C96: 64849 | D96: 35039.67 | E96: 29809.33 | F96: 0.8507309001 | G96: 35039.67 | J96: 35039.67
B97: Notes Payable / Senior Debt | C97: -- | D97: 35039.67 | G97: 35039.67 | H97: 0 | I97: SeniorDebt_38_Projection | J97: 35039.67
B98: Notes Payable / Subordinated Debt | C98: 0 | D98: 0 | E98: 0 | G98: 0 | J98: 0
B99: Other Long Term Liabilities | C99: 0 | D99: 0 | E99: 0 | G99: 0 | J99: 0
B101: Total Long Term Liabilities | C101: 64849 | D101: 35039.67 | E101: 29809.33 | F101: 0.8507309001 | G101: 35039.67 | J101: 35039.67
B102: Total Liabilities | C102: 279950 | D102: 223671.11 | E102: 56278.89 | F102: 0.2516144798 | G102: 223671.11 | J102: 223671.11
B104: Preferred Stock | C104: 0 | D104: 0 | E104: 0 | G104: 0 | J104: 0
B105: Common Stock | C105: 296 | D105: 298 | E105: -2 | F105: -0.006711409396 | G105: 298 | J105: 298
B106: Additional Paid-in Capital | C106: 524 | D106: 524 | E106: 0 | F106: 0 | G106: 524 | J106: 524
B107: Other Stock / Equity | C107: 9824 | D107: 9824 | E107: 0 | F107: 0 | G107: 9824 | J107: 9824
B108: Ending Retained Earnings | C108: 59301 | D108: 174774.89 | E108: -115473.89 | F108: -0.6607006876 | G108: 174774.89 | J108: 174774.89
B109: Ending Retained Earnings | C109: 0 | D109: 185420.89 | E109: -185420.89 | F109: -1 | G109: 174774.89 | H109: 185420.89 | I109: RetainedEarnings_48 | J109: 185420.89
B110: Other | C110: 59301 | D110: Not In Budget | G110: Not In Budget | H110: 409092 | I110: RetainedEarnings_49 | J110: Not In Budget
B112: Total Equity | C112: 69945 | D112: 185420.89 | E112: -115475.89 | F112: -0.6227771315 | G112: 185420.89 | J112: 185420.89
B113: Total Liabilities + Equity | C113: 349895 | D113: 409092 | E113: -59197 | F113: -0.1447033919 | G113: 409092 | J113: 409092
B114: Total Assets - (Total Liabilities + Equity) | C114: 0 | D114: 0 | E114: 0 | G114: 0 | J114: 0
H116: 0 | I116: AssetsMinusLiabilities_55
B117: Other Annual Debt Service | C117: 0 | D117: 0 | E117: 0 | G117: 0 | J117: 0
B119: Backlog | C119: 0 | D119: 0 | E119: 0 | G119: 0 | H119: 0 | I119: BSNonFinancialTemplate_58 | J119: 0
H120: 0 | I120: BSNonFinancialTemplate_59
B124: Statement of Equity | C124: 12 months | D124: 12 months | G124: 12 months | J124: 12 months
B125: Preferred Stock | C125: 0 | D125: 0 | E125: 0 | G125: 0 | J125: 0
B126: Common Stock | C126: 296 | D126: 298 | E126: -2 | F126: -0.006711409396 | G126: 298 | J126: 298
B127: Additional Paid-in Capital | C127: 524 | D127: 524 | E127: 0 | F127: 0 | G127: 524 | J127: 524
B128: Other Stock / Equity | C128: 9824 | D128: 9824 | E128: 0 | F128: 0 | G128: 9824 | J128: 9824
B130: Total Stock | C130: 10644 | D130: 10646 | E130: -2 | F130: -0.0001878639865 | G130: 10646 | J130: 10646
B132: Beginning Retained Earnings | C132: 49301 | D132: 49301 | E132: 0 | F132: 0 | G132: 49301 | J132: 49301
B133: Net Income | C133: 271446 | D133: 125473.89 | E133: 145972.11 | F133: 1.163366418 | G133: 125473.89 | J133: 125473.89
B134: Dividends Paid / Withdrawals | C134: 0 | D134: 0 | E134: 0 | G134: 0 | J134: 0
B135: Other Changes to Retained Earnings | C135: 0 | D135: 0 | E135: 0 | G135: 0 | J135: 0
B136: Unexplained Changes to RE | C136: -261446 | D136: 0 | E136: =IFERROR(C136-D136,"") -> -261446 | F136: =IFERROR((C136-D136)/ABS(D136),"") ->  | G136: 0 | J136: 0
B137: Ending Retained Earnings | C137: 59301 | D137: =J137 -> 174774.89 | E137: -115473.89 | F137: -0.6607006876 | G137: =IFERROR(IF(B137="","",INDEX(INDIRECT($A$1),MATCH(B137,INDIRECT($A$2),0),MATCH($D$5,INDIRECT($A$3),0))),"Not In Budget") -> 174774.89 | J137: 174774.89
J138: =IFERROR(IF(G138="Not In Budget",G138,IF(ISERROR(H138),G138,IF(ISBLANK(I138),G138,IF(G138<>H138,IF(H138=0,G138,H138),G138)))),"Not in Budget") -> 
B139: Ending Equity as Calculated Above | C139: 331391 | D139: 185420.89 | E139: 145970.11 | F139: 0.7872365945 | G139: 185420.89 | H139: =INDEX(INDIRECT($A$1),MATCH(I139,INDIRECT($A$7),0),MATCH($D$5,INDIRECT($A$3),0)) ->  | J139: 185420.89
B140: Actual Equity from Balance Sheet | C140: 69945 | D140: 185420.89 | E140: -115475.89 | F140: -0.6227771315 | G140: 185420.89 | J140: 185420.89
B141: Difference (Unexplained Change in Equity) | C141: -261446 | D141: 0 | E141: -261446 | G141: 0 | J141: 0
I144: ShortTermDebt_48
I145: ShortTermDebt_49
I146: ShortTermDebt_50
I147: ShortTermDebt_51
I148: ShortTermDebt_52
I149: ShortTermDebt_52_Projection
I152: CurrentLongTermDebt_56
I153: CurrentLongTermDebt_57
I154: CurrentLongTermDebt_58
I155: CurrentLongTermDebt_59_Projection
I156: CurrentLongTermDebt_57_Projection
I159: OtherCurrentLiabilities_60
I160: OtherCurrentLiabilities_61
I161: OtherCurrentLiabilities_62
I162: OtherCurrentLiabilities_63
I163: OtherCurrentLiabilities_64
I168: SeniorDebt_72
I169: SeniorDebt_73
I170: SeniorDebt_74
I171: SeniorDebt_75
I172: SeniorDebt_76
I173: SeniorDebt_77
I174: SeniorDebt_78
I175: SeniorDebt_79_Projection
I176: SeniorDebt_77_Projection
I179: OtherLongTermLiabilities_78
I187: AdditionalPaidInCapital_86
I189: OtherStock_88
I196: AssetsMinusLiabilities_95
I198: BSNonFinancialTemplate_97
I199: BSNonFinancialTemplate_98
E200: =IFERROR(C200-D200,"") ->  | F200: =IFERROR((C200-D200)/ABS(D200),"") ->  | I200: BSNonFinancialTemplate_99
D201: =J201 ->  | G201: =IFERROR(IF(B201="","",INDEX(INDIRECT($A$1),MATCH(B201,INDIRECT($A$2),0),MATCH($D$5,INDIRECT($A$3),0))),"Not In Budget") ->  | I201: BSNonFinancialTemplate_100
J202: =IFERROR(IF(G202="Not In Budget",G202,IF(ISERROR(H202),G202,IF(ISBLANK(I202),G202,IF(G202<>H202,IF(H202=0,G202,H202),G202)))),"Not in Budget") -> 
H203: =INDEX(INDIRECT($A$1),MATCH(I203,INDIRECT($A$7),0),MATCH($D$5,INDIRECT($A$3),0)) -> 
I217: Dividends_11
I218: Dividends_12
I228: AssetsMinusLiabilities_95
I231: BSNonFinancialTemplate_97
I233: BSNonFinancialTemplate_98
I235: BSNonFinancialTemplate_99
I237: BSNonFinancialTemplate_100
I255: Dividends_11
I257: Dividends_12
E264: =IFERROR(C264-D264,"") ->  | F264: =IFERROR((C264-D264)/ABS(D264),"") -> 
D265: =J265 ->  | G265: =IFERROR(IF(B265="","",INDEX(INDIRECT($A$1),MATCH(B265,INDIRECT($A$2),0),MATCH($D$5,INDIRECT($A$3),0))),"Not In Budget") -> 
J266: =IFERROR(IF(G266="Not In Budget",G266,IF(ISERROR(H266),G266,IF(ISBLANK(I266),G266,IF(G266<>H266,IF(H266=0,G266,H266),G266)))),"Not in Budget") -> 
H267: =INDEX(INDIRECT($A$1),MATCH(I267,INDIRECT($A$7),0),MATCH($D$5,INDIRECT($A$3),0)) -> 
E328: =IFERROR(C328-D328,"") ->  | F328: =IFERROR((C328-D328)/ABS(D328),"") -> 
D329: =J329 ->  | G329: =IFERROR(IF(B329="","",INDEX(INDIRECT($A$1),MATCH(B329,INDIRECT($A$2),0),MATCH($D$5,INDIRECT($A$3),0))),"Not In Budget") -> 
J330: =IFERROR(IF(G330="Not In Budget",G330,IF(ISERROR(H330),G330,IF(ISBLANK(I330),G330,IF(G330<>H330,IF(H330=0,G330,H330),G330)))),"Not in Budget") -> 
H331: =INDEX(INDIRECT($A$1),MATCH(I331,INDIRECT($A$7),0),MATCH($D$5,INDIRECT($A$3),0)) -> 
E392: =IFERROR(C392-D392,"") ->  | F392: =IFERROR((C392-D392)/ABS(D392),"") -> 
D393: =J393 ->  | G393: =IFERROR(IF(B393="","",INDEX(INDIRECT($A$1),MATCH(B393,INDIRECT($A$2),0),MATCH($D$5,INDIRECT($A$3),0))),"Not In Budget") -> 
J394: =IFERROR(IF(G394="Not In Budget",G394,IF(ISERROR(H394),G394,IF(ISBLANK(I394),G394,IF(G394<>H394,IF(H394=0,G394,H394),G394)))),"Not in Budget") -> 
H395: =INDEX(INDIRECT($A$1),MATCH(I395,INDIRECT($A$7),0),MATCH($D$5,INDIRECT($A$3),0)) -> 
E456: =IFERROR(C456-D456,"") ->  | F456: =IFERROR((C456-D456)/ABS(D456),"") -> 
D457: =J457 ->  | G457: =IFERROR(IF(B457="","",INDEX(INDIRECT($A$1),MATCH(B457,INDIRECT($A$2),0),MATCH($D$5,INDIRECT($A$3),0))),"Not In Budget") -> 
J458: =IFERROR(IF(G458="Not In Budget",G458,IF(ISERROR(H458),G458,IF(ISBLANK(I458),G458,IF(G458<>H458,IF(H458=0,G458,H458),G458)))),"Not in Budget") -> 
H459: =INDEX(INDIRECT($A$1),MATCH(I459,INDIRECT($A$7),0),MATCH($D$5,INDIRECT($A$3),0)) -> 
E520: =IFERROR(C520-D520,"") ->  | F520: =IFERROR((C520-D520)/ABS(D520),"") -> 
D521: =J521 ->  | G521: =IFERROR(IF(B521="","",INDEX(INDIRECT($A$1),MATCH(B521,INDIRECT($A$2),0),MATCH($D$5,INDIRECT($A$3),0))),"Not In Budget") -> 
J522: =IFERROR(IF(G522="Not In Budget",G522,IF(ISERROR(H522),G522,IF(ISBLANK(I522),G522,IF(G522<>H522,IF(H522=0,G522,H522),G522)))),"Not in Budget") -> 
H523: =INDEX(INDIRECT($A$1),MATCH(I523,INDIRECT($A$7),0),MATCH($D$5,INDIRECT($A$3),0)) -> 
E584: =IFERROR(C584-D584,"") ->  | F584: =IFERROR((C584-D584)/ABS(D584),"") -> 
D585: =J585 ->  | G585: =IFERROR(IF(B585="","",INDEX(INDIRECT($A$1),MATCH(B585,INDIRECT($A$2),0),MATCH($D$5,INDIRECT($A$3),0))),"Not In Budget") -> 
J586: =IFERROR(IF(G586="Not In Budget",G586,IF(ISERROR(H586),G586,IF(ISBLANK(I586),G586,IF(G586<>H586,IF(H586=0,G586,H586),G586)))),"Not in Budget") -> 
H587: =INDEX(INDIRECT($A$1),MATCH(I587,INDIRECT($A$7),0),MATCH($D$5,INDIRECT($A$3),0)) -> 
E648: =IFERROR(C648-D648,"") ->  | F648: =IFERROR((C648-D648)/ABS(D648),"") -> 
D649: =J649 ->  | G649: =IFERROR(IF(B649="","",INDEX(INDIRECT($A$1),MATCH(B649,INDIRECT($A$2),0),MATCH($D$5,INDIRECT($A$3),0))),"Not In Budget") -> 
J650: =IFERROR(IF(G650="Not In Budget",G650,IF(ISERROR(H650),G650,IF(ISBLANK(I650),G650,IF(G650<>H650,IF(H650=0,G650,H650),G650)))),"Not in Budget") -> 
H651: =INDEX(INDIRECT($A$1),MATCH(I651,INDIRECT($A$7),0),MATCH($D$5,INDIRECT($A$3),0)) -> 
E712: =IFERROR(C712-D712,"") ->  | F712: =IFERROR((C712-D712)/ABS(D712),"") -> 
D713: =J713 ->  | G713: =IFERROR(IF(B713="","",INDEX(INDIRECT($A$1),MATCH(B713,INDIRECT($A$2),0),MATCH($D$5,INDIRECT($A$3),0))),"Not In Budget") -> 
J714: =IFERROR(IF(G714="Not In Budget",G714,IF(ISERROR(H714),G714,IF(ISBLANK(I714),G714,IF(G714<>H714,IF(H714=0,G714,H714),G714)))),"Not in Budget") -> 
H715: =INDEX(INDIRECT($A$1),MATCH(I715,INDIRECT($A$7),0),MATCH($D$5,INDIRECT($A$3),0)) -> 
E776: =IFERROR(C776-D776,"") ->  | F776: =IFERROR((C776-D776)/ABS(D776),"") -> 
D777: =J777 ->  | G777: =IFERROR(IF(B777="","",INDEX(INDIRECT($A$1),MATCH(B777,INDIRECT($A$2),0),MATCH($D$5,INDIRECT($A$3),0))),"Not In Budget") -> 
J778: =IFERROR(IF(G778="Not In Budget",G778,IF(ISERROR(H778),G778,IF(ISBLANK(I778),G778,IF(G778<>H778,IF(H778=0,G778,H778),G778)))),"Not in Budget") -> 
H779: =INDEX(INDIRECT($A$1),MATCH(I779,INDIRECT($A$7),0),MATCH($D$5,INDIRECT($A$3),0)) -> 
E840: =IFERROR(C840-D840,"") ->  | F840: =IFERROR((C840-D840)/ABS(D840),"") -> 
D841: =J841 ->  | G841: =IFERROR(IF(B841="","",INDEX(INDIRECT($A$1),MATCH(B841,INDIRECT($A$2),0),MATCH($D$5,INDIRECT($A$3),0))),"Not In Budget") -> 
J842: =IFERROR(IF(G842="Not In Budget",G842,IF(ISERROR(H842),G842,IF(ISBLANK(I842),G842,IF(G842<>H842,IF(H842=0,G842,H842),G842)))),"Not in Budget") -> 
... 9 more rows

Sheet Sheet2
C5: Actual | D5: Budget | J5: Actual | K5: Budget
C6: 2017-12-31 | D6: 2017-12-31 | E6: $ Variance | F6: % Variance | I6: Liquidity Ratios
B7: Income Statement | C7: 12 months | D7: 12 months | I7: Current Ratio | J7: =INDEX(B:D,MATCH("Total Current Assets",B:B,0),2)/INDEX(B:D,MATCH("Total Current Liabilities",B:B,0),2) -> 1.434884078 | K7: =INDEX(B:F,MATCH("Total Current Assets",B:B,0),3)/INDEX(B:F,MATCH("Total Current Liabilities",B:B,0),3) -> 1.989371443
I8: Quick Ratio | J8: =(INDEX(B:F,MATCH("Cash (Bank Funds)",B:B,0),2)+ INDEX(B:F,MATCH("Accounts Receivable",B:B,0),2))/INDEX(B:F,MATCH("Total Current Liabilities",B:B,0),2) -> 0.4995839164 | K8: =(INDEX(B:F,MATCH("Cash (Bank Funds)",B:B,0),3)+ INDEX(B:F,MATCH("Accounts Receivable",B:B,0),3))/INDEX(B:F,MATCH("Total Current Liabilities",B:B,0),3) -> 0.9100709829
B9: Sales (Income) | C9: 1486000 | D9: 1657476 | E9: -171476 | F9: -0.1034560983 | I9: Working Capital | J9: =INDEX(B:F,MATCH("Total Current Assets",B:B,0),2)-INDEX(B:F,MATCH("Total Current Liabilities",B:B,0),2) -> 93544 | K9: =INDEX(B:F,MATCH("Total Current Assets",B:B,0),3)-INDEX(B:F,MATCH("Total Current Liabilities",B:B,0),3) -> 186626.56
B10: COGSDepreciation | C10: 0 | D10: 0 | E10: 0
B11: Cost of Sales (COGS) | C11: 921794 | D11: 1123106 | E11: -201312 | F11: -0.1792457702 | I11: Financial Leverage / Coverage Ratios
B12: Depreciation (COGS-related) | C12: 0 | D12: 0 | E12: 0 | I12: Debt to Equity Ratio | J12: =INDEX(B:D,MATCH("Total Current Assets",B:B,0),2)/INDEX(B:D,MATCH("Total Current Liabilities",B:B,0),2) -> 1.434884078 | K12: =INDEX(B:F,MATCH("Total Liabilities",B:B,0),3)/INDEX(B:F,MATCH("Total Equity",B:B,0),3) -> 1.206288623
B13: Direct Materials | C13: 0 | D13: 0 | E13: 0 | I13: Debt to Asset Ratio | J13: =INDEX(B:F,MATCH("Total Liabilities",B:B,0),2)/INDEX(B:F,MATCH("Total Assets",B:B,0),2) -> 0.800097172 | K13: =INDEX(B:F,MATCH("Total Liabilities",B:B,0),3)/INDEX(B:F,MATCH("Total Assets",B:B,0),3) -> 0.5467501442
B14: Direct Labor | C14: 0 | D14: 0 | E14: 0 | I14: Debt to Tangible Net Worth Ratio | J14: =INDEX(B:F,MATCH("Total Liabilities",B:B,0),2)/(INDEX(B:F,MATCH("Total Equity",B:B,0),2)-INDEX(B:F,MATCH("Net Intangible Assets",B:B,0),2)) -> 4.002430481 | K14: =INDEX(B:F,MATCH("Total Liabilities",B:B,0),3)/(INDEX(B:F,MATCH("Total Equity",B:B,0),3)-INDEX(B:F,MATCH("Net Intangible Assets",B:B,0),3)) -> 1.206288623
B15: Subcontractor Expense | C15: 0 | D15: 0 | E15: 0 | I15: Interest Coverage Ratio | J15: =IFERROR(INDEX(B:F,MATCH("EBITDA",B:B,0),2)/(INDEX(B:F,MATCH("Interest Expense",B:B,0),2)),"") -> 20.80259563 | K15: =IFERROR(INDEX(B:F,MATCH("EBITDA",B:B,0),3)/(INDEX(B:F,MATCH("Interest Expense",B:B,0),3)),"") -> 35.10309714
B16: Cost of Sales | C16: 0 | D16: 1123106 | E16: -1123106 | F16: -1 | I16: Debt to Cash Flow | J16: =INDEX(B:F,MATCH("Total Liabilities",B:B,0),2)/INDEX(B:F,MATCH("EBITDA",B:B,0),2) -> 0.9192250862 | K16: =INDEX(B:F,MATCH("Total Liabilities",B:B,0),3)/INDEX(B:F,MATCH("EBITDA",B:B,0),3) -> 1.100088579
B17: Other | C17: 921794 | D17: Not In Budget
B18: Gross Profit Margin | C18: 0.3796810229 | D18: 0.3223998417 | E18: 0.05728118119 | F18: 0.1776712448 | I18: Profitability Ratios
I19: Operating Profit Margin | J19: =INDEX(B:F,MATCH("Operating Profit",B:B,0),2)/INDEX(B:F,MATCH("Sales (Income)",B:B,0),2) -> 0.1992288022 | K19: =INDEX(B:F,MATCH("Operating Profit",B:B,0),3)/INDEX(B:F,MATCH("Sales (Income)",B:B,0),3) -> 0.1175431801
B20: Gross Profit | C20: 564206 | D20: 534370 | E20: 29836 | F20: 0.05583397272 | I20: Net Profit Margin | J20: =INDEX(B:F,MATCH("Net Profit Before Taxes",B:B,0),2)/INDEX(B:F,MATCH("Sales (Income)",B:B,0),2) -> 0.1901036339 | K20: =INDEX(B:F,MATCH("Net Profit Before Taxes",B:B,0),3)/INDEX(B:F,MATCH("Sales (Income)",B:B,0),3) -> 0.114700237
I21: Return on Equity | J21: =INDEX(B:F,MATCH("Net Profit Before Taxes",B:B,0),2)/INDEX(B:F,MATCH("Total Equity",B:B,0),2) -> 4.038801916 | K21: =INDEX(B:F,MATCH("Net Profit Before Taxes",B:B,0),3)/INDEX(B:F,MATCH("Total Equity",B:B,0),3) -> 1.025304592
B22: Depreciation | C22: 7416 | D22: 7416 | E22: 0 | F22: 0 | I22: Return on Assets | J22: =INDEX(B:F,MATCH("Net Profit Before Taxes",B:B,0),2)/INDEX(B:F,MATCH("Total Assets",B:B,0),2) -> 0.8073679247 | K22: =INDEX(B:F,MATCH("Net Profit Before Taxes",B:B,0),3)/INDEX(B:F,MATCH("Total Assets",B:B,0),3) -> 0.4647191585
B23: Amortization | C23: 0 | D23: 0 | E23: 0
B24: Overhead or S,G,& A Expenses | C24: 210288 | D24: 281681 | E24: -71393 | F24: -0.2534533746 | I24: Activity / Efficiency Ratios
B25: G & A Payroll Expense | C25: 80880 | D25: 9966 | E25: 70914 | F25: 7.115593016 | I25: Accounts Receivable Days | J25: =INDEX(B:F,MATCH("Accounts Receivable Days",B:B,0),2) -> 12.4765646 | K25: =INDEX(B:F,MATCH("Accounts Receivable Days",B:B,0),3) -> 10.9
B26: Rent | C26: 7440 | D26: 5626 | E26: 1814 | F26: 0.3224315677 | I26: Accounts Payable Days | J26: =INDEX(B:F,MATCH("Accounts Payable Days",B:B,0),2) -> 41.72304224 | K26: =INDEX(B:F,MATCH("Accounts Payable Days",B:B,0),3) -> 22.2
B27: Advertising | C27: 4200 | D27: 157750 | E27: -153550 | F27: -0.9733755943 | I27: Inventory Days | J27: =INDEX(B:F,MATCH("Inventory Days",B:B,0),2) -> 45.59005591 | K27: =INDEX(B:F,MATCH("Inventory Days",B:B,0),3) -> 38.2
B28: Miscellaneous | C28: 117768 | D28: 240 | E28: 117528 | F28: 489.7 | I28: Gross Fixed Asset Turnover | J28: =IFERROR(INDEX(B:F,MATCH("Sales (Income)",B:B,0),2)/INDEX(B:F,MATCH("Gross Fixed Assets",B:B,0),2),"") -> 21.12505864 | K28: =IFERROR(INDEX(B:F,MATCH("Sales (Income)",B:B,0),2)/INDEX(B:F,MATCH("Gross Fixed Assets",B:B,0),3),"") -> 21.12505864
B29: Other Operating Income | C29: 240 | D29: 240 | E29: 0 | F29: 0
B30: Other Operating Expenses | C30: 50688 | D30: 50688 | E30: 0 | F30: 0 | I30: Performance Ratios
I31: Sales (Income) Growth Rate | J31: 0.2022653722
B32: Total Operating Expenses | C32: 268392 | D32: 339785 | E32: -71393 | F32: -0.2101122769 | I32: Gross Profit Margin | J32: =INDEX(B:F,MATCH("Gross Profit Margin",B:B,0),2) -> 0.3796810229 | K32: =INDEX(B:F,MATCH("Gross Profit Margin",B:B,0),3) -> 0.3223998417
B33: Operating Profit | C33: 296054 | D33: 194825 | E33: 101229 | F33: 0.5195893751 | I33: Net Income Growth Rate | J33: 11.65718549
B35: Interest Expense | C35: 14640 | D35: 5792.11 | E35: 8847.89 | F35: 1.527576306
B36: Interest Expense | C36: -- | D36: 2040
B37: Other Income | C37: 2040 | D37: 2040 | E37: 0 | F37: 0 | J37: Actual | K37: Budget
B38: Other Expenses | C38: 960 | D38: 960 | E38: 0 | F38: 0 | I38: Income Statement
I39: Sales (Income) | J39: =INDEX(B:F,MATCH(I39,B:B,0),2) -> 1486000 | K39: =INDEX(B:F,MATCH(I39,B:B,0),3) -> 1657476
I40: Cost of Sales (COGS) | J40: =INDEX(B:F,MATCH(I40,B:B,0),2) -> 921794 | K40: =INDEX(B:F,MATCH(I40,B:B,0),3) -> 1123106
B41: EBITDA | C41: 304550 | D41: 203321 | E41: 101229 | F41: 0.4978777401 | I41: Gross Profit | J41: 564206 | K41: 534370
B42: Net Profit Before Taxes | C42: 282494 | D42: 190112.89 | E42: 92381.11 | F42: 0.4859276507 | I42: Overhead or S,G,& A Expenses | J42: 210288 | K42: 281681
B43: Adjusted Owner's Compensation | C43: 0 | D43: 0 | E43: 0 | I43: EBITDA | J43: 304550 | K43: 203321
B44: Adjusted Net Profit Before Taxes | C44: 282494 | D44: 190112.89 | E44: 92381.11 | F44: 0.4859276507 | I44: Net Income | J44: 271446 | K44: 125473.89
B46: Taxes Paid | C46: 11048 | D46: 64639 | E46: -53591 | F46: -0.8290815143 | I46: Balance Sheet
B47: Extraordinary Gain | C47: 0 | D47: 0 | E47: 0 | I47: Cash (Bank Funds) | J47: =INDEX(B:F,MATCH("Cash (Bank Funds)",B:B,0),2) -> 56666 | K47: =INDEX(B:F,MATCH("Cash (Bank Funds)",B:B,0),3) -> 122171
B48: Extraordinary Loss | C48: 0 | D48: 0 | E48: 0 | I48: Total Current Assets | J48: =INDEX(B:F,MATCH(I48,B:B,0),2) -> 308645 | K48: =INDEX(B:F,MATCH(I48,B:B,0),3) -> 375258
I49: Net Fixed Assets | J49: 26137 | K49: 18721
B50: Net Income | C50: 271446 | D50: 125473.89 | E50: 145972.11 | F50: 1.163366418 | I50: Total Assets | J50: 349895 | K50: 409092
I51: Total Current Liabilities | J51: 215101 | K51: 188631.44
I52: Total Long Term Liabilities | J52: 64849 | K52: 35039.67
I53: Total Equity | J53: 69945 | K53: 185420.89
B55: Balance Sheet Assumptions
B56: Accounts Receivable Days | C56: 12.4765646 | D56: 10.9 | E56: 1.576564603 | F56: 0.1446389544
B57: Accounts Payable Days | C57: 41.72304224 | D57: 22.2 | E57: 19.52304224 | F57: 0.8794163172
B58: Inventory Days | C58: 45.59005591 | D58: 38.2 | E58: 7.390055913 | F58: 0.1934569611 | I58: Actual Vs. Budget | J58: $ | K58: %
I59: Key Variances
B60: Balance Sheet | C60: 12 months | D60: 12 months | I60: Sales (Income) | J60: =INDEX(B:F,MATCH(I60,B:B,0),4) -> -171476 | K60: =INDEX($B:$F,MATCH(I60,$B:$B,0),5) -> -0.1034560983 | L60: =1+INDEX($B:$F,MATCH($I60,$B:$B,0),5) -> 0.8965439017
B61: Cash (Bank Funds) | C61: 56666 | D61: 122171 | E61: -65505 | F61: -0.5361747059 | I61: Gross Profit | J61: 29836 | K61: =INDEX($B:$F,MATCH(I61,$B:$B,0),5) -> 0.05583397272 | L61: =1+INDEX($B:$F,MATCH($I61,$B:$B,0),5) -> 1.055833973
B62: Accounts Receivable | C62: 50795 | D62: 49497 | E62: 1298 | F62: 0.02622381154 | I62: Operating Profit | J62: 101229 | K62: =INDEX(B:F,MATCH(I62,B:B,0),5) -> 0.5195893751 | L62: 1.519589375
B63: Inventory | C63: 115136 | D63: 117542 | E63: -2406 | F63: -0.02046927907 | I63: Net Income | J63: =INDEX(B:F,MATCH(I63,B:B,0),4) -> 145972.11 | K63: =INDEX(B:F,MATCH(I63,B:B,0),5) -> 1.163366418 | L63: 2.163366418
B64: Other Current Assets | C64: 86048 | D64: 86048 | E64: 0 | F64: 0 | I64: EBITDA | J64: 101229 | K64: 0.4978777401 | L64: 1.49787774
B65: Costs and Earnings in Excess of Billings | C65: 0 | D65: 86048 | E65: -86048 | F65: -1 | I65: Cash | J65: =INDEX(B:F,MATCH("Cash (Bank Funds)",B:B,0),4) -> -65505 | K65: =INDEX(B:F,MATCH("Cash (Bank Funds)",B:B,0),5) -> -0.5361747059 | L65: =1+INDEX($B:$F,MATCH("Cash (Bank Funds)",$B:$B,0),5) -> 0.4638252941
B66: Other Current Assets | C66: 86048 | D66: 86048 | E66: 0 | F66: 0 | I66: Working Capital | J66: =(INDEX($B:$F,MATCH("Total Current Assets",$B:$B,0),2)-INDEX($B:$F,MATCH("Total Current Liabilities",$B:$B,0),2)) -( INDEX($B:$F,MATCH("Total Current Assets",$B:$B,0),3)-INDEX($B:$F,MATCH("Total Current Liabilities",$B:$B,0),3)) -> -93082.56 | K66: =IFERROR(((INDEX($B:$F,MATCH("Total Current Assets",$B:$B,0),2)-INDEX($B:$F,MATCH("Total Current Liabilities",$B:$B,0),2)) -( INDEX($B:$F,MATCH("Total Current Assets",$B:$B,0),3)-INDEX($B:$F,MATCH("Total Current Liabilities",$B:$B,0),3)))/( INDEX($B:$F,MATCH("Total Current Assets",$B:$B,0),3)-INDEX($B:$F,MATCH("Total Current Liabilities",$B:$B,0),3)),"") -> -0.4987637344 | L66: =IFERROR(1+((INDEX($B:$F,MATCH("Total Current Assets",$B:$B,0),2)-INDEX($B:$F,MATCH("Total Current Liabilities",$B:$B,0),2)) -( INDEX($B:$F,MATCH("Total Current Assets",$B:$B,0),3)-INDEX($B:$F,MATCH("Total Current Liabilities",$B:$B,0),3)))/( INDEX($B:$F,MATCH("Total Current Assets",$B:$B,0),3)-INDEX($B:$F,MATCH("Total Current Liabilities",$B:$B,0),3)),"") -> 0.5012362656
B68: Total Current Assets | C68: 308645 | D68: 375258 | E68: -66613 | F68: -0.177512538
B70: Gross Fixed Assets | C70: 70343 | D70: 70343 | E70: 0 | F70: 0
B71: Accumulated Depreciation | C71: 44206 | D71: 51622 | E71: -7416 | F71: -0.14365968
B73: Net Fixed Assets | C73: 26137 | D73: 18721 | E73: 7416 | F73: 0.3961326852
B75: Gross Intangible Assets | C75: 0 | D75: 0 | E75: 0
B76: Accumulated Amortization | C76: 0 | D76: 0 | E76: 0
B78: Net Intangible Assets | C78: 0 | D78: 0 | E78: 0
B80: Other Assets | C80: 15113 | D80: 15113 | E80: 0 | F80: 0
B82: Total Assets | C82: 349895 | D82: 409092 | E82: -59197 | F82: -0.1447033919
B84: Accounts Payable | C84: 105370 | D84: 68310 | E84: 37060 | F84: 0.5425267164
B85: Short Term Debt | C85: 0 | D85: 0 | E85: 0
B86: Loan Information Debt Service | D86: 25011 | E86: -25011 | F86: -1
B87: Current Portion of Long Term Debt | C87: 10371 | D87: 20961.44 | E87: -10590.44 | F87: -0.5052343732
B88: Current Portion of Long Term Debt | C88: -- | D88: 10371
B89: Prior Current Portion of Long Term Debt | D89: 10371 | E89: -10371 | F89: -1
B90: Other Current Liabilities | C90: 99360 | D90: 99360 | E90: 0 | F90: 0
B91: Billings in Excess of Costs | C91: 0 | D91: 99360 | E91: -99360 | F91: -1
B92: Other Current Liabilities | C92: 0 | D92: 99360 | E92: -99360 | F92: -1
B93: Other | C93: 99360 | D93: Not In Budget
B95: Total Current Liabilities | C95: 215101 | D95: 188631.44 | E95: 26469.56 | F95: 0.1403242217
B97: Notes Payable / Senior Debt | C97: 64849 | D97: 35039.67 | E97: 29809.33 | F97: 0.8507309001
B98: Notes Payable / Senior Debt | C98: -- | D98: 35039.67
B99: Notes Payable / Subordinated Debt | C99: 0 | D99: 0 | E99: 0
B100: Other Long Term Liabilities | C100: 0 | D100: 0 | E100: 0
B102: Total Long Term Liabilities | C102: 64849 | D102: 35039.67 | E102: 29809.33 | F102: 0.8507309001
B103: Total Liabilities | C103: 279950 | D103: 223671.11 | E103: 56278.89 | F103: 0.2516144798
B105: Preferred Stock | C105: 0 | D105: 0 | E105: 0
B106: Common Stock | C106: 296 | D106: 298 | E106: -2 | F106: -0.006711409396
B107: Additional Paid-in Capital | C107: 524 | D107: 524 | E107: 0 | F107: 0
B108: Other Stock / Equity | C108: 9824 | D108: 9824 | E108: 0 | F108: 0
B109: Ending Retained Earnings | C109: 59301 | D109: 174774.89 | E109: -115473.89 | F109: -0.6607006876
B110: Ending Retained Earnings | C110: 0 | D110: 185420.89 | E110: -185420.89 | F110: -1
B111: Other | C111: 59301 | D111: Not In Budget
B113: Total Equity | C113: 69945 | D113: 185420.89 | E113: -115475.89 | F113: -0.6227771315
B114: Total Liabilities + Equity | C114: 349895 | D114: 409092 | E114: -59197 | F114: -0.1447033919
B115: Total Assets - (Total Liabilities + Equity) | C115: 0 | D115: 0 | E115: 0
B118: Other Annual Debt Service | C118: 0 | D118: 0 | E118: 0
B120: Backlog | C120: 0 | D120: 0 | E120: 0
B125: Statement of Equity | C125: 12 months | D125: 12 months
B126: Preferred Stock | C126: 0 | D126: 0 | E126: 0
B127: Common Stock | C127: 296 | D127: 298 | E127: -2 | F127: -0.006711409396
B128: Additional Paid-in Capital | C128: 524 | D128: 524 | E128: 0 | F128: 0
B129: Other Stock / Equity | C129: 9824 | D129: 9824 | E129: 0 | F129: 0
B131: Total Stock | C131: 10644 | D131: 10646 | E131: -2 | F131: -0.0001878639865
B133: Beginning Retained Earnings | C133: 49301 | D133: 49301 | E133: 0 | F133: 0
B134: Net Income | C134: 271446 | D134: 125473.89 | E134: 145972.11 | F134: 1.163366418
B135: Dividends Paid / Withdrawals | C135: 0 | D135: 0 | E135: 0
B136: Other Changes to Retained Earnings | C136: 0 | D136: 0 | E136: 0
B137: Unexplained Changes to RE | C137: -261446 | D137: 0 | E137: -261446
B138: Ending Retained Earnings | C138: 59301 | D138: 174774.89 | E138: -115473.89 | F138: -0.6607006876
B140: Ending Equity as Calculated Above | C140: 331391 | D140: 185420.89 | E140: 145970.11 | F140: 0.7872365945
B141: Actual Equity from Balance Sheet | C141: 69945 | D141: 185420.89 | E141: -115475.89 | F141: -0.6227771315
B142: Difference (Unexplained Change in Equity) | C142: -261446 | D142: 0 | E142: -261446
